fUST/lending_fUST_20250201
["ID","MTS","AMOUNT","RATE_DAILY","PERIOD"]
[351163944,1738381834761,-435.856199,0.00016849,7]
[351163945,1738381834771,-354.4430635,0.00016877,2]
[351163946,1738381834780,-354.4430635,0.00016877,2]
[351163947,1738381834791,-823.6,0.00016899,2]
[351163948,1738381834800,-204.39135434,0.000169,2]
[351163949,1738381834809,-7414.85945591,0.00016923,2]
[351163950,1738381834819,-231.924004,0.00016984,2]
[351163951,1738381834828,-151.0,0.00016984,2]
[351163952,1738381834837,-500.0,0.00016984,2]
[351163953,1738381834846,-151.0,0.00016984,2]
[351163954,1738381834855,-500.0,0.00016984,2]
[351163955,1738381834865,-823.6,0.00016984,2]
[351163956,1738381834874,-151.0,0.00016984,2]
[351163957,1738381834883,-151.0,0.00016984,2]
[351163958,1738381834892,-151.0,0.00016984,2]
[351163959,1738381834901,-151.0,0.00016984,2]
[351163960,1738381834911,-1453.63,0.00016984,2]
[351163961,1738381834920,-151.0,0.00016984,2]
[351163962,1738381834931,-500.0,0.00016984,2]
[351163963,1738381834941,-151.0,0.00016985,2]
[351163964,1738381834950,-151.0,0.00016985,2]
[351163965,1738381834960,-151.0,0.00016985,2]
[351163966,1738381834971,-151.0,0.00016985,2]
[351163967,1738381834981,-151.0,0.00016985,2]
[351163968,1738381834992,-152.164946,0.00016985,2]
[351163969,1738381835002,-152.573021,0.00016985,2]
[351163970,1738381835013,-151.0,0.00016985,2]
[351163971,1738381835024,-733.23583529,0.00016986,2]
[351163972,1738381835034,-150.05,0.00016986,2]
[351163973,1738381835044,-151.0,0.00016986,2]
[351163974,1738381835055,-151.0,0.00016986,2]
[351163975,1738381835064,-500.0,0.00016986,2]
[351163976,1738381835074,-283.53375309,0.00016986,2]
[351163977,1738381835083,-488.37,0.00016986,2]
[351163978,1738381835092,-151.0,0.00016986,2]
[351163979,1738381835102,-500.0,0.00016986,2]
[351163980,1738381835111,-758.61,0.00016986,2]
[351163981,1738381835120,-500.0,0.00016986,2]
[351163982,1738381835129,-500.0,0.00016986,2]
[351163983,1738381835138,-500.0,0.00016986,2]
[351163984,1738381835147,-619.76,0.00016986,2]
[351163985,1738381835156,-500.0,0.00016986,2]
[351163986,1738381835165,-500.0,0.00016986,2]
[351163987,1738381835175,-500.0,0.00016986,2]
[351163988,1738381835185,-500.0,0.00016986,2]
[351163989,1738381835195,-500.0,0.00016986,2]
[351163990,1738381835205,-540.14,0.00016986,2]
[351163991,1738381835214,-265.35505714,0.00016986,2]
[351163992,1738381835224,-1950.8,0.00016986,2]
[351163993,1738381835234,-966.87,0.00016986,2]
[351163994,1738381835243,-500.0,0.00016986,2]
[351163995,1738381835252,-500.0,0.00016986,2]
[351163996,1738381835261,-500.0,0.00016986,2]
[351163997,1738381835270,-896.44,0.00016986,2]
[351163998,1738381835280,-998.6,0.00017,2]
[351163999,1738381835289,-151.0,0.00017,2]
[351164000,1738381835298,-162.6323282,0.00017088,2]
[351164001,1738381835307,-823.6,0.00017113,2]
[351164002,1738381835316,-500.0,0.00017114,2]
[351164003,1738381835326,-151.0,0.00017121,2]
[351164004,1738381835335,-500.0,0.00017121,2]
[351164005,1738381835344,-187.76684766,0.00017121,2]
[351164006,1738381835353,-151.0,0.00017121,2]
[351164007,1738381835362,-151.0,0.00017121,2]
[351164008,1738381835372,-1453.63,0.00017121,2]
[351164009,1738381835381,-500.0,0.00017121,2]
[351164010,1738381835392,-151.0,0.00017122,2]
[351164011,1738381835401,-204.39135423,0.00017122,2]
[351164012,1738381835410,-500.0,0.00017123,2]
[351164013,1738381835419,-151.0,0.00017123,2]
[351164014,1738381835430,-298.233024,0.00017123,2]
[351164015,1738381835443,-758.61,0.00017123,2]
[351164016,1738381835454,-500.0,0.00017123,2]
[351164017,1738381835465,-500.0,0.00017123,2]
[351164018,1738381835475,-500.0,0.00017123,2]
[351164019,1738381835484,-619.76,0.00017123,2]
[351164020,1738381835494,-500.0,0.00017123,2]
[351164021,1738381835504,-500.0,0.00017123,2]
[351164022,1738381835513,-500.0,0.00017123,2]
[351164023,1738381835522,-568.93582317,0.00017123,2]
[351164024,1738381835531,-430.06302099,0.00017123,2]
[351164025,1738381835541,-540.14,0.00017123,2]
[351164026,1738381835550,-1950.8,0.00017123,2]
[351164027,1738381835559,-966.87,0.00017123,2]
[351164028,1738381835568,-224.46586077,0.00017123,2]
[351164029,1738381835578,-500.0,0.00017123,2]
[351164030,1738381835588,-500.0,0.00017123,2]
[351164031,1738381835597,-896.44,0.00017123,2]
[351164032,1738381835606,-503.19713715,0.00017158,2]
[351164033,1738381835615,-500.49999703,0.00017187,2]
[351164034,1738381835625,-500.0,0.00017258,2]
[351164035,1738381835634,-151.0,0.00017258,2]
[351164036,1738381835643,-1453.63,0.00017258,2]
[351164037,1738381835653,-500.0,0.00017258,2]
[351164038,1738381835662,-823.6,0.00017259,2]
[351164039,1738381835671,-279.67659213,0.0001726,2]
[351164040,1738381835682,-151.0,0.0001726,2]
[351164041,1738381835691,-500.0,0.0001726,2]
[351164042,1738381835700,-758.61,0.0001726,2]
[351164043,1738381835710,-500.0,0.0001726,2]
[351164044,1738381835819,-500.0,0.0001726,2]
[351164045,1738381835830,-500.0,0.0001726,2]
[351164046,1738381835840,-619.76,0.0001726,2]
[351164047,1738381835849,-500.0,0.0001726,2]
[351164048,1738381835858,-500.0,0.0001726,2]
[351164049,1738381835867,-168.03509159,0.0001726,2]
[351164050,1738381835876,-540.14,0.0001726,2]
[351164051,1738381835886,-1950.8,0.0001726,2]
[351164052,1738381835896,-151.0,0.0001726,2]
[351164053,1738381835906,-966.87,0.0001726,2]
[351164054,1738381835915,-151.0,0.0001726,2]
[351164055,1738381835925,-500.0,0.0001726,2]
[351164056,1738381835934,-500.0,0.0001726,2]
[351164057,1738381835944,-896.44,0.0001726,2]
[351164058,1738381835954,-160.0,0.0001732,3]
[351164059,1738381835963,-317.5126754,0.00017342,2]
[351164060,1738381835972,-204.39135423,0.00017344,2]
[351164061,1738381835982,-215.5924898,0.0001737,2]
[351164062,1738381835991,-291.0,0.0001739,2]
[351164063,1738381836001,-500.0,0.00017395,2]
[351164064,1738381836010,-1453.63,0.00017395,2]
[351164065,1738381836020,-500.0,0.00017395,2]
[351164066,1738381836029,-823.6,0.00017396,2]
[351164067,1738381836039,-151.0,0.00017397,2]
[351164068,1738381836048,-509.70667118,0.00017397,2]
[351164069,1738381836057,-758.61,0.00017397,2]
[351164070,1738381836066,-500.0,0.00017397,2]
[351164071,1738381836075,-500.0,0.00017397,2]
[351164072,1738381836084,-500.0,0.00017397,2]
[351164073,1738381836094,-619.76,0.00017397,2]
[351164074,1738381836104,-500.0,0.00017397,2]
[351164075,1738381836114,-500.0,0.00017397,2]
[351164076,1738381836123,-540.14,0.00017397,2]
[351164077,1738381836133,-1208.28675305,0.00017397,2]
[351164078,1738381836148,-742.51324695,0.00017397,2]
[351164079,1738381836157,-151.0,0.00017397,2]
[351164080,1738381836167,-966.87,0.00017397,2]
[351164081,1738381836177,-151.0,0.00017397,2]
[351164082,1738381836187,-500.0,0.00017397,2]
[351164083,1738381836196,-500.0,0.00017397,2]
[351164084,1738381836206,-896.44,0.00017397,2]
[351164085,1738381836216,-220.4656269,0.00017397,2]
[351164086,1738381836226,-157.10375,0.00017397,2]
[351164087,1738381836235,-163.5358904,0.00017397,2]
[351164088,1738381836246,-215.5924898,0.00017397,2]
[351164089,1738381836255,-500.0,0.00017532,2]
[351164090,1738381836266,-151.0,0.00017532,2]
[351164091,1738381836277,-1453.63,0.00017532,2]
[351164092,1738381836287,-500.0,0.00017532,2]
[351164093,1738381836296,-171.42864488,0.00017534,2]
[351164094,1738381836308,-587.18135512,0.00017534,2]
[351164095,1738381836318,-500.0,0.00017534,2]
[351164096,1738381836327,-500.0,0.00017534,2]
[351164097,1738381836337,-595.68886554,0.00017534,2]
[351164098,1738381836347,-127.02977934,0.00017534,2]
[351164111,1738381837905,-500.0,0.00016712,2]
[351164113,1738381837914,-512.75317175,0.00016847,2]
[351164114,1738381837924,-500.0,0.00016847,2]
[351164115,1738381837933,-129.11454683,0.00016847,2]
[351164116,1738381837962,-31.34843617,0.00016847,2]
[351164117,1738381837971,-485.82071373,0.00016847,2]
[351164118,1738381838019,-14.17928627,0.00016847,2]
[351164119,1738381838028,-277.62493828,0.00016847,2]
[351164120,1738381838037,-500.0,0.00016847,2]
[351164121,1738381838047,-500.0,0.00016847,2]
[351164122,1738381838055,-500.0,0.00016849,2]
[351164123,1738381838065,-500.0,0.00016986,2]
[351164124,1738381838074,-500.0,0.00017123,2]
[351164125,1738381838083,-500.0,0.0001726,2]
[351164126,1738381838092,-500.0,0.00017397,2]
[351164127,1738381838102,-492.73022066,0.00017534,2]
[351164128,1738381838111,-500.0,0.00017534,2]
[351164129,1738381838120,-500.0,0.00017534,2]
[351164130,1738381838130,-540.14,0.00017534,2]
[351164131,1738381838139,-1950.8,0.00017534,2]
[351164132,1738381838149,-966.87,0.00017534,2]
[351164133,1738381838158,-500.0,0.00017534,2]
[351164134,1738381838168,-500.0,0.00017534,2]
[351164135,1738381838178,-896.44,0.00017534,2]
[351164136,1738381838188,-500.0,0.00017534,2]
[351164137,1738381838198,-204.39135423,0.00017567,2]
[351164138,1738381838208,-350.7456518,0.00017616,2]
[351164139,1738381838217,-500.0,0.00017669,2]
[351164140,1738381838226,-1453.63,0.00017669,2]
[351164141,1738381838236,-500.0,0.00017669,2]
[351164142,1738381838246,-500.92333425,0.0001767,2]
[351164143,1738381838255,-823.6,0.0001767,2]
[351164144,1738381838264,-151.0,0.0001767,2]
[351164145,1738381838274,-151.0,0.00017671,2]
[351164146,1738381838284,-758.61,0.00017671,2]
[351164147,1738381838293,-500.0,0.00017671,2]
[351164148,1738381838303,-500.0,0.00017671,2]
[351164149,1738381838313,-619.76,0.00017671,2]
[351164150,1738381838322,-500.0,0.00017671,2]
[351164151,1738381838331,-500.0,0.00017671,2]
[351164152,1738381838340,-540.14,0.00017671,2]
[351164153,1738381838350,-1950.8,0.00017671,2]
[351164154,1738381838359,-159.802688,0.00017671,2]
[351164155,1738381838368,-966.87,0.00017671,2]
[351164156,1738381838378,-151.0,0.00017671,2]
[351164157,1738381838387,-500.0,0.00017671,2]
[351164158,1738381838396,-500.0,0.00017671,2]
[351164159,1738381838406,-896.44,0.00017671,2]
[351164160,1738381838415,-500.0,0.00017671,2]
[351164161,1738381838425,-354.4430635,0.00017671,2]
[351164162,1738381838435,-354.4430635,0.00017671,2]
[351164163,1738381838446,-3341.68947594,0.00017688,5]
[351164164,1738381838455,-261.348,0.00017688,2]
[351164165,1738381838465,-2051.107,0.00017688,2]
[351164166,1738381838474,-540.569,0.00017688,2]
[351164167,1738381838483,-2303.0,0.00017688,2]
[351164168,1738381838493,-396.0,0.00017688,2]
[351164169,1738381838502,-204.39135423,0.00017789,2]
[351164170,1738381838511,-1000.0,0.000178,3]
[351164171,1738381838521,-823.6,0.00017805,2]
[351164172,1738381838530,-500.0,0.00017806,2]
[351164173,1738381838540,-151.0,0.00017806,2]
[351164174,1738381838549,-1453.63,0.00017806,2]
[351164175,1738381838559,-500.0,0.00017806,2]
[351164176,1738381838568,-151.0,0.00017808,2]
[351164177,1738381838577,-758.61,0.00017808,2]
[351164178,1738381838586,-500.0,0.00017808,2]
[351164179,1738381838595,-500.0,0.00017808,2]
[351164180,1738381838604,-619.76,0.00017808,2]
[351164181,1738381838614,-500.0,0.00017808,2]
[351164182,1738381838623,-500.0,0.00017808,2]
[351164183,1738381838632,-540.14,0.00017808,2]
[351164184,1738381838641,-1950.8,0.00017808,2]
[351164185,1738381838650,-966.87,0.00017808,2]
[351164186,1738381838660,-151.0,0.00017808,2]
[351164187,1738381838669,-500.0,0.00017808,2]
[351164188,1738381838678,-500.0,0.00017808,2]
[351164189,1738381838687,-896.44,0.00017808,2]
[351164190,1738381838696,-500.0,0.00017808,2]
[351164191,1738381838705,-354.4430635,0.00017836,2]
[351164192,1738381838715,-354.4430635,0.00017836,2]
[351164193,1738381838724,-3000.0,0.00017911,2]
[351164194,1738381838735,-160.0,0.00017917,4]
[351164195,1738381838745,-500.0,0.00017943,2]
[351164196,1738381838755,-1453.63,0.00017943,2]
[351164197,1738381838764,-500.0,0.00017943,2]
[351164198,1738381838774,-823.6,0.00017944,2]
[351164199,1738381838783,-210.36492059,0.00017944,2]
[351164200,1738381838792,-386.21223834,0.00017944,2]
[351164201,1738381838801,-758.61,0.00017945,2]
[351164202,1738381838810,-500.0,0.00017945,2]
[351164203,1738381838819,-432.51231389,0.00017945,2]
[351164204,1738381838828,-619.76,0.00017945,2]
[351164205,1738381838838,-372.35119074,0.00017945,2]
[351164206,1738381838847,-500.0,0.00017945,2]
[351164207,1738381838856,-540.14,0.00017945,2]
[351164208,1738381838866,-1950.8,0.00017945,2]
[351164209,1738381838875,-151.0,0.00017945,2]
[351164210,1738381838884,-966.87,0.00017945,2]
[351164211,1738381838893,-151.0,0.00017945,2]
[351164212,1738381838903,-500.0,0.00017945,2]
[351164213,1738381838912,-500.0,0.00017945,2]
[351164214,1738381838922,-896.44,0.00017945,2]
[351164215,1738381838931,-500.0,0.00017945,2]
[351164216,1738381838940,-204.39135423,0.00018011,2]
[351164217,1738381838950,-500.49999703,0.00018036,2]
[351164218,1738381838959,-500.0,0.0001808,2]
[351164219,1738381838968,-1453.63,0.0001808,2]
[351164220,1738381838977,-500.0,0.0001808,2]
[351164221,1738381838987,-151.0,0.00018082,2]
[351164222,1738381838997,-758.61,0.00018082,2]
[351164223,1738381839007,-469.62307583,0.00018082,2]
[351164224,1738381839018,-619.76,0.00018082,2]
[351164225,1738381839027,-500.0,0.00018082,2]
[351164226,1738381839037,-540.14,0.00018082,2]
[351164227,1738381839047,-1950.8,0.00018082,2]
[351164228,1738381839057,-966.87,0.00018082,2]
[351164229,1738381839066,-500.0,0.00018082,2]
[351164230,1738381839075,-500.0,0.00018082,2]
[351164231,1738381839084,-896.44,0.00018082,2]
[351164232,1738381839094,-500.0,0.00018082,2]
[351164233,1738381839103,-501.00649128,0.00018093,2]
[351164234,1738381839112,-1000.0,0.000182,10]
[351164235,1738381839121,-500.0,0.0001821,2]
[351164236,1738381839131,-571.08510742,0.00018217,2]
[351164237,1738381839141,-1453.63,0.00018217,2]
[351164238,1738381839150,-500.0,0.00018217,2]
[351164239,1738381839160,-823.6,0.00018218,2]
[351164240,1738381839169,-758.61,0.00018219,2]
[351164241,1738381839178,-619.76,0.00018219,2]
[351164242,1738381839187,-500.0,0.00018219,2]
[351164243,1738381839197,-540.14,0.00018219,2]
[351164244,1738381839205,-1950.8,0.00018219,2]
[351164245,1738381839215,-151.0,0.00018219,2]
[351164246,1738381839224,-966.87,0.00018219,2]
[351164247,1738381839233,-500.0,0.00018219,2]
[351164248,1738381839242,-500.0,0.00018219,2]
[351164249,1738381839251,-896.44,0.00018219,2]
[351164250,1738381839260,-500.0,0.00018219,2]
[351164251,1738381839269,-204.39135423,0.00018233,2]
[351164252,1738381839278,-169.195,0.00018344,2]
[351164253,1738381839288,-1453.63,0.00018354,2]
[351164254,1738381839298,-500.0,0.00018354,2]
[351164255,1738381839307,-257.553058,0.00018356,2]
[351164256,1738381839316,-758.61,0.00018356,2]
[351164257,1738381839325,-619.76,0.00018356,2]
[351164258,1738381839334,-500.0,0.00018356,2]
[351164259,1738381839343,-540.14,0.00018356,2]
[351164260,1738381839353,-1950.8,0.00018356,2]
[351164261,1738381839362,-966.87,0.00018356,2]
[351164262,1738381839372,-500.0,0.00018356,2]
[351164264,1738381839381,-500.0,0.00018356,2]
[351164266,1738381839390,-896.44,0.00018356,2]
[351164268,1738381839400,-500.0,0.00018356,2]
[351164269,1738381839409,-708.22554357,0.00018399,2]
[351164270,1738381839423,-115.37445643,0.00018399,2]
[351164271,1738381839432,-823.6,0.00018399,2]
[351164272,1738381839446,-823.6,0.00018399,2]
[351164273,1738381839455,-823.6,0.00018399,2]
[351164274,1738381839464,-411.75666669,0.00018399,2]
[351164275,1738381839476,-411.84333331,0.00018399,2]
[351164276,1738381839486,-35928.72016839,0.000184,6]
[351164277,1738381839499,-14096.28335096,0.000184,6]
[351164301,1738381840225,-988.48,0.000184,6]
[351164328,1738381842998,-651.0,0.00016545,2]
[351164329,1738381843055,-800.0,0.00016545,2]
[351164330,1738381843067,-188.84704964,0.00016545,2]
[351164331,1738381843078,-1894.80286615,0.000184,6]
[351164332,1738381843089,-815.0,0.000184,6]
[351164349,1738381846039,-150.348,0.0001787,2]
[351164350,1738381846051,-8094.72040093,0.000184,6]
[351164351,1738381846065,-4822.06182732,0.000184,6]
[351164352,1738381846077,-13912.12106372,0.000184,6]
[351164353,1738381846108,-347.0,0.000184,6]
[351164354,1738381846120,-894.242857,0.000184,6]
[351164355,1738381846132,-5870.91878232,0.000184,6]
[351164356,1738381846142,-10409.47,0.000184,2]
[351164357,1738381846153,-204.39135423,0.00018456,2]
[351164358,1738381846162,-161.084,0.00018486,2]
[351164359,1738381846173,-1453.63,0.00018491,2]
[351164360,1738381846183,-500.0,0.00018491,2]
[351164361,1738381846193,-823.6,0.00018492,2]
[351164362,1738381846202,-619.76,0.00018493,2]
[351164363,1738381846212,-500.0,0.00018493,2]
[351164364,1738381846222,-540.14,0.00018493,2]
[351164365,1738381846232,-1950.8,0.00018493,2]
[351164366,1738381846242,-966.87,0.00018493,2]
[351164367,1738381846252,-500.0,0.00018493,2]
[351164368,1738381846262,-500.0,0.00018493,2]
[351164369,1738381846272,-896.44,0.00018493,2]
[351164370,1738381846282,-500.0,0.00018493,2]
[351164371,1738381846292,-160.0,0.00018514,5]
[351164372,1738381846301,-156.56,0.000186,2]
[351164373,1738381846311,-1453.63,0.00018628,2]
[351164374,1738381846321,-500.0,0.00018628,2]
[351164375,1738381846331,-619.76,0.0001863,2]
[351164376,1738381846341,-500.0,0.0001863,2]
[351164377,1738381846350,-540.14,0.0001863,2]
[351164378,1738381846360,-1950.8,0.0001863,2]
[351164379,1738381846369,-966.87,0.0001863,2]
[351164380,1738381846379,-500.0,0.0001863,2]
[351164381,1738381846389,-500.0,0.0001863,2]
[351164382,1738381846398,-896.44,0.0001863,2]
[351164383,1738381846408,-500.0,0.0001863,2]
[351164384,1738381846418,-563.3261042,0.00018658,2]
[351164385,1738381846427,-500.82514476,0.00018658,2]
[351164386,1738381846438,-600.0,0.00018658,2]
[351164387,1738381846450,-204.39135423,0.00018678,2]
[351164388,1738381846459,-500.0,0.00018692,2]
[351164389,1738381846468,-500.0,0.00018692,2]
[351164390,1738381846478,-500.0,0.00018692,2]
[351164391,1738381846487,-310.0460963,0.00018712,2]
[351164392,1738381846498,-1453.63,0.00018765,2]
[351164393,1738381846507,-500.0,0.00018765,2]
[351164394,1738381846517,-823.6,0.00018766,2]
[351164395,1738381846528,-823.6,0.00018766,2]
[351164396,1738381846538,-823.6,0.00018766,2]
[351164397,1738381846547,-823.6,0.00018766,2]
[351164398,1738381846556,-823.60633684,0.00018766,2]
[351164399,1738381846566,-619.76,0.00018767,2]
[351164400,1738381846575,-500.0,0.00018767,2]
[351164401,1738381846584,-540.14,0.00018767,2]
[351164402,1738381846593,-1950.8,0.00018767,2]
[351164403,1738381846603,-966.87,0.00018767,2]
[351164404,1738381846613,-496.0,0.00018767,2]
[351164405,1738381846622,-411.82553045,0.00018767,2]
[351164406,1738381846631,-896.44,0.00018767,2]
[351164407,1738381846641,-500.0,0.00018767,2]
[351164408,1738381846650,-307.3704659,0.00018767,2]
[351164409,1738381846666,-1004.9,0.000188,20]
[351164410,1738381846680,-500.3350834,0.00018883,2]
[351164411,1738381846690,-182.49521098,0.000189,2]
[351164412,1738381846700,-204.39135423,0.000189,2]
[351164413,1738381846710,-1453.63,0.00018902,2]
[351164414,1738381846720,-500.0,0.00018902,2]
[351164415,1738381846730,-619.76,0.00018904,2]
[351164416,1738381846741,-500.0,0.00018904,2]
[351164417,1738381846751,-540.14,0.00018904,2]
[351164418,1738381846760,-1950.8,0.00018904,2]
[351164419,1738381846771,-966.87,0.00018904,2]
[351164420,1738381846782,-575.25098858,0.00018904,2]
[351164426,1738382076696,859.02,0.00010959,2]
[351164427,1738382128593,153.7,0.00010959,2]
[351164428,1738382139287,768.52,0.00010959,2]
[351164433,1738382756093,-392.82468968,0.00015382,2]
[351164434,1738382900347,206.344115,0.00013699,2]
[351164435,1738382936955,5000.0,0.00015056,2]
[351164436,1738382948173,-4883.11229818,0.00015228,2]
[351164437,1738382951892,5000.0,0.00015056,2]
[351164438,1738382967432,5000.0,0.00015056,2]
[351164439,1738382982667,5000.0,0.00015056,2]
[351164440,1738382998882,1401.85446972,0.00015056,2]
[351164499,1738383032443,-116.88770182,0.00015228,2]
[351164500,1738383032453,-5405.967778,0.000164,2]
[351164501,1738383032463,-510.55520027,0.00016438,2]
[351164502,1738383032473,-504.78308096,0.00016438,2]
[351164503,1738383032482,-546.89,0.00016438,2]
[351164504,1738383032491,-511.8525891,0.00016438,2]
[351164505,1738383032501,-511.64782178,0.00016438,2]
[351164506,1738383032511,-514.88466092,0.00016438,2]
[351164507,1738383032521,-510.95215057,0.00016438,2]
[351164508,1738383032530,-500.0,0.00016438,2]
[351164509,1738383032539,-500.0,0.00016438,2]
[351164510,1738383032549,-506.80771514,0.00016438,2]
[351164511,1738383032558,-500.0,0.00016438,2]
[351164512,1738383032567,-516.21611085,0.00016438,2]
[351164513,1738383032576,-500.0,0.00016438,2]
[351164514,1738383032586,-507.96117794,0.00016438,2]
[351164515,1738383032595,-523.51033154,0.00016438,2]
[351164516,1738383032605,-519.99536709,0.00016438,2]
[351164517,1738383032614,-507.75536313,0.00016438,2]
[351164518,1738383032623,-500.0,0.00016438,2]
[351164519,1738383032633,-519.33109739,0.00016438,2]
[351164520,1738383032642,-500.0,0.00016438,2]
[351164522,1738383032652,-511.92829638,0.00016438,2]
[351164524,1738383032661,-503.95085173,0.00016438,2]
[351164525,1738383032670,-506.20603404,0.00016438,2]
[351164527,1738383032681,-500.0,0.00016438,2]
[351164529,1738383032691,-500.0,0.00016438,2]
[351164531,1738383032700,-513.38883523,0.00016438,2]
[351164533,1738383032710,-508.85531412,0.00016438,2]
[351164535,1738383032719,-509.43499841,0.00016438,2]
[351164537,1738383032729,-500.0,0.00016438,2]
[351164539,1738383032738,-500.0,0.00016438,2]
[351164541,1738383032747,-467.80254981,0.00016438,2]
[351164543,1738383032757,-509.61616244,0.00016438,2]
[351164545,1738383032766,-492.88732955,0.00016438,2]
[351164547,1738383032777,-406.11120913,0.00016438,2]
[351164549,1738383032786,-500.0,0.00016438,2]
[351164551,1738383032796,-500.0,0.00016438,2]
[351164553,1738383032805,-500.0,0.00016438,2]
[351164555,1738383032815,-500.0,0.00016438,2]
[351164557,1738383032824,-502.951678,0.00016438,2]
[351164559,1738383032834,-500.0,0.00016438,2]
[351164562,1738383032843,-514.37484055,0.00016438,2]
[351164563,1738383032853,-510.73974402,0.00016438,2]
[351164564,1738383032865,-500.0,0.00016438,2]
[351164565,1738383032876,-500.0,0.00016438,2]
[351164566,1738383032885,-516.92843078,0.00016438,2]
[351164567,1738383032895,-615.23,0.00016438,2]
[351164568,1738383032906,-500.0,0.00016438,2]
[351164569,1738383032915,-533.94,0.00016438,2]
[351164570,1738383032925,-500.0,0.00016438,2]
[351164571,1738383032936,-500.0,0.00016438,2]
[351164572,1738383032946,-578.58,0.00016438,2]
[351164573,1738383032956,-510.54166208,0.00016438,2]
[351164574,1738383032966,-500.0,0.00016438,2]
[351164575,1738383032975,-500.0,0.00016438,2]
[351164576,1738383032984,-500.0,0.00016438,2]
[351164577,1738383032993,-500.0,0.00016438,2]
[351164578,1738383033002,-510.03791743,0.00016438,2]
[351164579,1738383033011,-507.11238265,0.00016438,2]
[351164580,1738383033021,-500.0,0.00016438,2]
[351164581,1738383033031,-257.33599645,0.00016438,2]
[351164582,1738383033041,-500.0,0.00016438,2]
[351164583,1738383033050,-500.0,0.00016438,2]
[351164584,1738383033060,-500.0,0.00016438,2]
[351164585,1738383033069,-508.3772174,0.00016438,2]
[351164586,1738383033078,-500.0,0.00016438,2]
[351164587,1738383033087,-500.0,0.00016438,2]
[351164588,1738383033097,-506.61203377,0.00016438,2]
[351164589,1738383033106,-500.0,0.00016438,2]
[351164590,1738383033115,-500.0,0.00016438,2]
[351164591,1738383033125,-542.43,0.00016438,2]
[351164592,1738383033134,-500.0,0.00016438,2]
[351164593,1738383033143,-500.0,0.00016438,2]
[351164594,1738383033153,-505.84843238,0.00016438,2]
[351164595,1738383033163,-512.0766558,0.00016438,2]
[351164596,1738383033173,-500.0,0.00016438,2]
[351164597,1738383033182,-500.0,0.00016438,2]
[351164598,1738383033192,-500.0,0.00016438,2]
[351164599,1738383033201,-511.10257172,0.00016438,2]
[351164600,1738383033211,-507.83850901,0.00016438,2]
[351164601,1738383033222,-519.73276201,0.00016438,2]
[351164602,1738383033231,-500.0,0.00016438,2]
[351164603,1738383033240,-500.0,0.00016438,2]
[351164604,1738383033249,-500.0,0.00016438,2]
[351164605,1738383033258,-500.0,0.00016438,2]
[351164606,1738383033268,-504.9306235,0.00016438,2]
[351164607,1738383033277,-557.36926622,0.00016438,2]
[351164608,1738383033287,-500.0,0.00016438,2]
[351164609,1738383033297,-500.0,0.00016438,2]
[351164610,1738383033306,-500.0,0.00016438,2]
[351164611,1738383033315,-500.0,0.00016438,2]
[351164612,1738383033324,-500.0,0.00016438,2]